Cogmind - Beta 15 @@@ ROGUE MODE // 2025.05.13 @ 23:56:15 Player: Skysub Result: Destroyed by as-92465 with Assembled Blade Performance ------------- Evolutions (0) 0 Regions Visited (2) 400 Robots Destroyed (33) 165 Value Destroyed (623) 623 Prototype IDs (0) 0 Alien Tech Used (0) 0 Bonus (0) 0 TOTAL SCORE: 1188 Bonus ------- None Cogmind --------- Core Integrity 0/250 Matter 295/300 Energy 250/250 System Corruption 0% Temperature Cool (0) Movement Core (500) Ox9 Location -10/Mines Parts ------- > --- POWER (1) -------- Ion Engine > --- PROPULSION (2) --- Light Treads > --- UTILITY (2) ------ Large Storage Unit Structural Scanner > --- WEAPON (2) ------- Mining Claw > --- INVENTORY (15) --- Ion Engine Light Ion Engine Aluminum Leg Aluminum Leg Wheel Compact Wheel Medium Storage Unit Sensor Array Signal Interpreter Terrain Scan Processor Light Armor Plating Small Laser Mining Laser Peak State ------------ > --- POWER ------------ Light Ion Engine > --- PROPULSION ------- Light Treads Light Treads > --- UTILITY ---------- Large Storage Unit Improved Terrain Scanner > --- WEAPON ----------- Assault Rifle Mining Claw > --- INVENTORY -------- Light Ion Engine Wheel Wheel Wheel Medium Storage Unit Signal Interpreter Assault Rifle Assault Rifle Assault Rifle Mining Laser [Rating: 10] Favorites ----------- Power Ion Engine Engine Ion Engine Propulsion Light Treads Treads Light Treads Leg Aluminum Leg Wheel Wheel Utility Large Storage Unit Device Improved Terrain Scanner Storage Large Storage Unit Weapon Assault Rifle Ballistic Gun Assault Rifle Slashing Weapon Mining Claw Build | -11 -10 -10 ------- Run | Yrd Mat Min Slots Evolved . | . . . Power . | . . . Propulsion . | . . . Utility . | . . . Weapon . | . . . Parts Attached 20 | 7 11 2 Power 2 | 1 1 . Engine 2 | 1 1 . Core . | . . . Reactor . | . . . Propulsion 7 | 2 3 2 Treads 3 | 2 1 . Leg 1 | . . 1 Wheel 3 | . 2 1 Hover . | . . . Flight . | . . . Utility 5 | 2 3 . Device 2 | 1 1 . Storage 3 | 1 2 . Processor . | . . . Hackware . | . . . Protection . | . . . Artifact . | . . . Weapon 6 | 2 4 . Energy Gun . | . . . Energy Cannon . | . . . Ballistic Gun 5 | 2 3 . Ballistic Cannon . | . . . Launcher . | . . . Special Weapon . | . . . Impact Weapon . | . . . Slashing Weapon 1 | . 1 . Piercing Weapon . | . . . Special Melee Weapon . | . . . Unidentified Prototypes . | . . . Parts Lost 10 | . 7 3 Power 1 | . 1 . Propulsion 4 | . 3 1 Utility 1 | . 1 . Weapon 4 | . 2 2 Highest Loss Streak 5 | . 5 3 To Critical Strikes . | . . . Average Backups 9 | 4 8 12 Power 1 | . 1 2 Propulsion 2 | 2 2 2 Utility 2 | . 2 4 Weapon 3 | 1 3 2 Tool/Special . | . . . Unused Backups 10 | . . 10 Power 2 | . . 2 Propulsion 2 | . . 2 Utility 4 | . . 4 Weapon 2 | . . 2 Tool/Special . | . . . Average Slot Usage (%) 95 | . 93 99 Engine 13 | . 13 14 Treads 18 | . 20 14 Leg 3 | . . 11 Wheel 4 | . 5 2 Device 11 | . 10 14 Storage 14 | . 14 14 Ballistic Gun 26 | . 26 25 Slashing Weapon 1 | . 1 1 Peak Build Rating 10 | 9 10 8 Average Rating 7 | 6 8 7 On Entrance 5 | . 9 7 Naked Turns . | . . . Heaviest Build 30 | 12 30 30 Greatest Support 40 | 40 40 20 Greatest Overweight (x) 2 | 1 2 2 Average Overweight (x) . | . . 1 Largest Inventory Capacity 15 | 8 15 15 Average Capacity 13 | 7 13 15 Most Carried 14 | 6 12 14 Average Carried 9 | 4 8 12 Final Capacity 15 | 8 15 15 Final Carried 13 | 6 12 13 Class Distribution -------------------- 100% | Mutant Dominant Class ---------------- Mutant | -10/Materials Mutant | -10/Mines Resources | -11 -10 -10 ----------- Run | Yrd Mat Min Matter Collected 883 | 268 566 49 Remotely . | . . . Salvage Created 1003 | 24 864 115 Parts 66 | 6 56 4 Haulers Intercepted 2 | . 2 . Recyclers Shooed . | . . . Parts Field Recycled . | . . . Retrieved Matter . | . . . Parts Self-Destructed . | . . . Prevented . | . . . Kills | -11 -10 -10 ------- Run | Yrd Mat Min Combat Hostiles Destroyed 25 | . 23 2 Melee 2 | . . 2 Guns 23 | . 23 . Classes Destroyed 8 | 1 5 2 Worker 1 | . 1 . Builder 3 | . 2 1 Tunneler 3 | 2 1 . Hauler 2 | . 2 . Recycler 1 | . . 1 Swarmer 9 | . 9 . Grunt 14 | . 14 . Assembled 2 | . . 2 Best Kill Streak 4 | 2 4 2 Combat Bots Only 3 | . 3 2 Max Kills in Single Turn 2 | 1 2 1 Gunslinging . | . . . Exploded . | . . . Melee 1 | . . 1 Uniques/NPCs Destroyed . | . . . Combat | -11 -10 -10 -------- Run | Yrd Mat Min Hostile Shots Fired 154 | . 137 17 Missed 40 | . 38 2 Hits 114 | . 99 15 Melee 11 | . . 11 Projectile 103 | . 99 4 Damage Taken 1390 | . 987 403 Core 267 | . 118 149 Absorbed by Shields . | . . . Regen/Repaired (Parts) 17 | . 17 . Core Remaining (%) 100 | 100 . . Volleys Fired 84 | 1 80 3 Largest 2 | 2 2 2 Hottest 40 | 40 40 40 Shots Fired 166 | 2 158 6 Gun 166 | 2 158 6 Cannon . | . . . Launcher . | . . . Special . | . . . Kinetic 166 | 2 158 6 Thermal . | . . . Explosive . | . . . Electromagnetic . | . . . Robot Hit Streak 16 | 1 16 10 Robot Miss Streak 3 | . 3 . Penetration Max . | . . . Secondary Targets 4 | . 4 . Max Gunslinging Chain 1 | . 1 . Shots Hit Robots 113 | 1 101 11 Core Hits 49 | 1 44 4 Critical Kills . | . . . Critical Parts Destroyed . | . . . Critical Strikes . | . . . Melee Attacks 18 | . 2 16 Impact . | . . . Slashing 18 | . 2 16 Piercing . | . . . Sneak Attacks 1 | . 1 . Combat Hostiles . | . . . Follow-up Attacks . | . . . Damage Inflicted 1619 | 20 1356 243 Guns 1369 | 11 1294 64 Cannons . | . . . Explosions . | . . . Melee 227 | . 48 179 Ramming 23 | 9 14 . Kinetic 1369 | 11 1294 64 Thermal . | . . . Explosive . | . . . Electromagnetic . | . . . Impact . | . . . Slashing 227 | . 48 179 Piercing . | . . . Highest Corruption . | . . . Average Corruption . | . . . Corruption Purged . | . . . Corruption Blocked . | . . . Overload Shots . | . . . Overflow Damage 18 | . . 18 Projectiles . | . . . Explosions . | . . . Melee 18 | . . 18 Knockbacks . | . . . Impact . | . . . Kinetic . | . . . Secondary . | . . . Self-Inflicted Damage . | . . . Shots . | . . . Rammed 7 | 3 4 . Targets Rammed 9 | 4 5 . Kicked . | . . . Crushed 2 | 1 1 . Highest Temperature 5 | . 5 . Average Temperature 5 | . 5 . Received Heat Transfer 372 | . 372 . Siege Activations . | . . . Martial Activations . | . . . Shielding Activations . | . . . Robots Disrupted . | . . . Combat Hostiles . | . . . Robots Corrupted . | . . . Combat Hostiles . | . . . Parts Fried . | . . . Impact Corruptions . | . . . Robots Melted . | . . . Combat Hostiles . | . . . Parts Melted . | . . . Heat Transferred . | . . . Parts Sabotaged . | . . . Parts Stolen . | . . . Parts Stripped . | . . . Power Chain Reactions . | . . . Alert | -11 -10 -10 ------- Run | Yrd Mat Min Maximum Alert Level 1 | . 1 . Low Security (%) 76 | 100 63 100 Level 1 23 | . 36 . Level 2 . | . . . Level 3 . | . . . Level 4 . | . . . Level 5 . | . . . High Security . | . . . Max Security . | . . . Peak Influence 275 | 5 275 93 Initial 93 | . . 93 Average 91 | . 133 16 Influence Increases 697 | 10 677 10 Destroy 0b10 Robot/C 460 | . 460 . Destroy 0b10 Robot/NC 50 | 10 30 10 Destroy Leader 94 | . 94 . Successful Hack 33 | . 33 . Select Force Hacks 30 | . 30 . Disable Machine 15 | . 15 . Lose Combat Pursuer 15 | . 15 . Influence Decreases 697 | 10 438 249 Entered New Map 146 | . . 146 Time Decay 481 | 10 368 103 Lost Part 70 | . 70 . Squads Dispatched 8 | . 8 . Investigation 5 | . 5 . Extermination . | . . . Reinforcement 3 | . 3 . Assault . | . . . Garrison . | . . . Intercept . | . . . Searches Triggered . | . . . Construction Impeded . | . . . Haulers Reinforced . | . . . Active Scanning Responses . | . . . Cargo Convoy Interrupts . | . . . Stealth | -11 -10 -10 --------- Run | Yrd Mat Min Distress Signals 2 | . 2 . Communications Jammed . | . . . Distress Signals . | . . . Times Spotted 38 | . 35 3 Peak Tracking Total 6 | . 6 2 Tactical Retreats 1 | . 1 . Traps | -11 -10 -10 ------- Run | Yrd Mat Min Traps Triggered 3 | . 3 . Indirectly . | . . . Trap Hack Attempts . | . . . Triggered . | . . . Disarmed . | . . . Reprogrammed . | . . . Reused . | . . . Traps Extracted . | . . . Installed . | . . . Triggered . | . . . Machines | -11 -10 -10 ---------- Run | Yrd Mat Min Machines Disabled 1 | . 1 . Max in Single Turn 1 | . 1 . Machines Repaired . | . . . Machines Dismantled . | . . . Machines Sabotaged . | . . . Overloaded Fab Kills . | . . . Hacking | -11 -10 -10 --------- Run | Yrd Mat Min Machines Accessed 8 | . 8 . Terminals 5 | . 5 . Fabricators . | . . . Repair Stations 1 | . 1 . Recycling Units 2 | . 2 . Scanalyzers . | . . . Garrison Access . | . . . Total Hacks 25 | . 25 . Successful 12 | . 12 . Failed 13 | . 13 . Catastrophic 1 | . 1 . Database Lockouts . | . . . Manual 15 | . 15 . Terminals 19 | . 19 . Fabricators . | . . . Repair Stations 1 | . 1 . Recycling Units 5 | . 5 . Scanalyzers . | . . . Garrison Access . | . . . Terminal Hacks 3 | . 3 . Branch Access Points 1 | . 1 . Recycling Unit Index 1 | . 1 . Recall Investigation 1 | . 1 . Fabricator Hacks . | . . . Repair Station Hacks . | . . . Recycling Unit Hacks 2 | . 2 . Report Inventory 2 | . 2 . Scanalyzer . | . . . Garrison Access Hacks . | . . . Unauthorized Hacks 7 | . 7 . Terminals 5 | . 5 . Botnet 5 | . 5 . Fabricators . | . . . Repair Stations 1 | . 1 . Patch 1 | . 1 . Recycling Units 1 | . 1 . Tunnel 1 | . 1 . Scanalyzers . | . . . Garrison Access . | . . . Data Cores Recovered . | . . . Used . | . . . Hacking Detections 6 | . 6 . Full Trace Events 2 | . 2 . Feedback Events . | . . . Feedback Blocked . | . . . Robot Schematics Acquired . | . . . Robots Built . | . . . Authchips . | . . . Time . | . . . Total Robot Build Rating . | . . . Part Schematics Acquired . | . . . Parts Built . | . . . Authchips . | . . . Time . | . . . Total Part Build Rating . | . . . Parts Repaired . | . . . Time . | . . . Parts Recycled . | . . . Recycled Matter . | . . . Retrieved Matter . | . . . Retrieved Components . | . . . Parts Scanalyzed . | . . . Part Schematics Acquired . | . . . Parts Damaged . | . . . Bothacking | -11 -10 -10 ------------ Run | Yrd Mat Min Used RIF Installer . | . . . Robots Hacked . | . . . Non-combat . | . . . Combat . | . . . Robot Hacks Applied . | . . . Relay Couplers Released . | . . . Fabnet Peak Effective % . | . . . Robots Rewired . | . . . Allies Hacked . | . . . Hacks Repelled . | . . . Allies | -11 -10 -10 -------- Run | Yrd Mat Min Total Allies . | . . . Largest Group . | . . . Highest-Rated Group . | . . . Highest-Rated Ally . | . . . Total Orders . | . . . Ally Attacks . | . . . Total Damage . | . . . Kills . | . . . Allies Corrupted . | . . . Allies Melted . | . . . Intel | -11 -10 -10 ------- Run | Yrd Mat Min Active Infowar (turns) 1658 | 44 1034 580 Terrain 881 | 44 837 . Structural 777 | . 197 580 Robot Analysis Total . | . . . Derelict Logs Recovered 2 | . . 2 Drone Launches . | . . . Drone Recoveries . | . . . Exploration | -11 -10 -10 ------------- Run | Yrd Mat Min Turns Passed 2051 | 137 1334 580 Spaces Moved 863 | 77 613 173 Core 13 | 13 . . Treads 707 | 64 498 145 Legs 1 | . . 1 Wheels 142 | . 115 27 Hover . | . . . Flight . | . . . Fastest Speed 50 | 50 95 110 Average Speed 173 | 146 163 219 Slowest Speed 260 | 160 240 260 Overloaded Moves . | . . . Propulsion Burnouts . | . . . Robots Hopped . | . . . Potential Cave-ins . | . . . Cave-ins Triggered . | . . . Exploration Rate (%) 48 | 4 94 46 Regions Visited 2 Branch Regions 1 Pre-discovered Areas 2 | . 1 1 Known Exits Taken 1 | . 1 . Unknown Exits Taken 1 | 1 . . Scrap Searched 1 | . . 1 Spaces Dug . | . . . Terrain Destroyed . | . . . Melee . | . . . Projectile . | . . . AOE . | . . . Terrain Rammed . | . . . Walls Destroyed . | . . . Machines Disabled . | . . . Actions | -11 -10 -10 --------- Run | Yrd Mat Min Total 1208 | 94 779 335 Wait 190 | . 55 135 Move 861 | 76 612 173 Hop . | . . . Pick Up 18 | 6 9 3 Fast Attach 9 | 7 2 . Attach 7 | . 5 2 Detach 1 | . 1 . Swap 9 | . 6 3 Drop 2 | . 2 . Fire 84 | 1 80 3 Melee 18 | . 2 16 Ram . | . . . Kick . | . . . Crush 9 | 4 5 . Escape Stasis . | . . . Rewire . | . . . Trap . | . . . Miscellaneous . | . . . Route ------- -11/Scrapyard -10/Materials (discovered 6 exits: [*Mat x3] / *Min x2 / [*Sub]) -10/Mines (discovered 1 exit: [Sub]) History --------- Turn | Location | Event 16 | -11/Scrapyard | Discovered new exit (range 14) 138 | -11/Scrapyard | Entered Materials 139 | -10/Materials | Met a group of wandering Federalists 245 | -10/Materials | Discovered new exit (range 13) 310 | -10/Materials | Build established: Mutant 338 | -10/Materials | Discovered new exit (range 5) 393 | -10/Materials | Discovered new exit (range 15) 446 | -10/Materials | Discovered new exit (range 15) 673 | -10/Materials | Discovered new exit (range 16) 724 | -10/Materials | Identified exit to Mines 1006 | -10/Materials | Lost 5 parts (1p2n1u1w) 1472 | -10/Materials | Entered Mines 1665 | -10/Mines | Discovered new exit (range 5) 1847 | -10/Mines | Found a hidden stash of uninstalled traps 1940 | -10/Mines | Learned location of 1 exit from Materials 1970 | -10/Mines | Excavation squad dispatched 1970 | -10/Mines | A large section of the Mines collapsed 1978 | -10/Mines | Core integrity fell below 50% 2046 | -10/Mines | Core integrity fell below 20% 2052 | -10/Mines | Destroyed by as-92465 with Assembled Blade Last Messages --------------- Acquired derelict log, extracted data. Data stored: Materials exits (x1). Searching scrap... Found Com. Wheel. Found 65 Matter. Acquired 10 matter. Acquired Com. Wheel. ALERT: Suspicious cave-in, suspected derelict activity in mines. Dispatching escorted excavation squad. Acquired 10 matter. as-84538 destroyed. as-02640 destroyed. T-07 Excavator is excavating. K-01 Serf collects debris. Assault Rifle destroyed. K-01 Serf collects debris. Destroyed Asb. Hover Unit. K-01 Serf collects debris. Wheel destroyed. Map ----- +----------------------------------------------------+ | ???????? "??? ## & ####### ?? | | ?????""" """ #### & & ##???????? | | ???? #### &###########????? | | ???????? """ ###########????? | | ???????? """ ##???## ##????? | | ???????? """ #### ##?### ##????? | | ?????????? ? ### ###### ###????? | | ?????????????## ###### ###?????? | | ?????????????## ###### ##??????? | | ?????????????### ##### ##??????? | | ?????????????### ###### ###??????? | | ??????????????## ######???? | | ??????????????## ######??? | | ????#####?????######### #####? | | ????######????########## ##### | | ????## ##?????????## ### | | ????# ###???????## | | ????? ##???????## ### | | ????? #???????## #### ##### | | ?????? ##??###### ##### ###### | | ??????? ###?###### ######## ###??? | | ???????## ##### ##?##### ##???? | | ???????#### #### ##????## ##???? | | ????????###; ### #######????## ##???? | | ????????###;a#### #######????## ##???? | | ????????## ##@### #####??????## ##???? | | ????????## ###;## ###??????## ##???? | | ????????## ### ###?????## ##???? | | ??????#### ### ###?????## ##???? | | ?????##### ###; ##?###?## ##???? | | ?????### ###%### ###?? ?????? | | ????### ####"#### ##?? ?????? | | ???#### ###"##### ##?? ?????? | | ???### ##%#### ###?? ?????? | | ??### ## ###### ########?? ?????? | | ?### ###"##### #######??? ?????? | | ?## ##%####?? ##??????????????? | | ?## #######???? ??????????????? | | ?## #######????? ???????????????? | | ?### ?????? ??????????????? | | ?#### ?? ????? ??????????????? | | ??#####??#######?????????????????????? | | ???####??#######?????????????????????? | | ?????????????????????????????????????? | | | | | | | | | | | | | +----------------------------------------------------+ Best States ------------- Heat Dissipation 25 Energy Generation 10 Energy Capacity 250 Matter Stores 300 Matter Capacity 300 Sight Range 16 Terrain Scan Range 16 Terrain Scan Density 10 Evasion (%) 41 Recoil Reduction 2 Item Schematics ----------------- None Robot Schematics ------------------ None Fabricated ------------ Nothing Repaired ---------- Nothing Alien Tech Used ----------------- None Achievements -------------- None Challenges ------------ None Game ------ Seed CatalystExoskeletonAxe Manual? 0 Play Time 00:14:21 Cumulative 82.0 hours Start 2025.05.13 @ 23:43:03 End 2025.05.13 @ 23:56:15 Sessions 1 Manual Loads 0 Difficulty Rogue Special Mode None Game No. 79 Rogue 79 Adventurer 0 Explorer 0 Win Type - Total 1 Types 1/0/0/0/0/0/0/0/0/0 Lore% 46 Gallery% 49 Achievement% 44 Wizard Run 0 Options --------- Layout 1 ASCII 0 Keyboard 1 Movement Numpad Keybinds 0 Fullscreen 1 Font 32/SmallcapsGlow Map View 50x35 Zoom Use 0% Tactical HUD 0 Map Filters NONE Filters NONE Steam 1 RUN: e3d74e9c-f8bc-47d0-a341-1eddb0d8bda0